Cogmind - Beta 9.2 @@@ ROGUE MODE // 2019.12.01 @ 22:10:31 Player: Bert Result: Self-destructed Performance ------------- Evolutions (1) 500 Regions Visited (3) 600 Robots Destroyed (11) 55 Value Destroyed (297) 297 Prototype IDs (1) 20 Alien Tech Used (0) 0 Bonus (0) 0 TOTAL SCORE: 1472 Bonus ------- None Cogmind --------- Core Integrity 257/400 Matter 276/300 Energy 240/240 System Corruption 0% Temperature Cool (0) Movement Core (300) Ox5 Location -9/Materials Parts ------- > --- POWER (1) -------- Nuclear Core > --- PROPULSION (3) --- (None) > --- UTILITY (3) ------ Heat Sink Small Storage Unit ECM Suite > --- WEAPON (2) ------- Assault Rifle Improved Assault Rifle > --- INVENTORY (6) ---- Light Ion Engine Improved Ion Engine Improved Hover Unit Improved Hover Unit Field Recycling Unit (0) Mining Laser Peak State ------------ > --- POWER ------------ Improved Ion Engine > --- PROPULSION ------- Improved Hover Unit Improved Hover Unit Improved Hover Unit > --- UTILITY ---------- Heat Sink Small Storage Unit ECM Suite > --- WEAPON ----------- EM Pulse Gun Improved Assault Rifle > --- INVENTORY -------- Light Ion Engine Improved Hover Unit Improved Hover Unit Small Laser Assault Rifle Mining Laser [Rating: 15] Favorites ----------- Power Ion Engine Engine Ion Engine Power Core Nuclear Core Propulsion Improved Hover Unit Wheel Compact Wheel Hover Unit Improved Hover Unit Utility Small Storage Unit Device ECM Suite Storage Small Storage Unit Weapon EM Pulse Gun Energy Gun EM Pulse Gun Ballistic Gun Improved Assault Rifle Build | -11 -10 -10 -9 ------- Run | Scr Mat Min Mat Slots Evolved 2 | . . . 2 Power . | . . . . Propulsion 1 | . . . 1 Utility 1 | . . . 1 Weapon . | . . . . Parts Attached 17 | 6 1 1 9 Power 4 | 1 1 . 2 Engine 3 | 1 1 . 1 Core 1 | . . . 1 Reactor . | . . . . Propulsion 5 | 2 . . 3 Treads . | . . . . Leg . | . . . . Wheel 2 | 2 . . . Hover 3 | . . . 3 Flight . | . . . . Utility 4 | 1 . 1 2 Device 3 | . . 1 2 Storage 1 | 1 . . . Processor . | . . . . Hackware . | . . . . Protection . | . . . . Artifact . | . . . . Weapon 4 | 2 . . 2 Energy Gun 2 | 2 . . . Energy Cannon . | . . . . Ballistic Gun 2 | . . . 2 Ballistic Cannon . | . . . . Launcher . | . . . . Special Weapon . | . . . . Impact Weapon . | . . . . Slashing Weapon . | . . . . Piercing Weapon . | . . . . Special Melee Weapon . | . . . . Unidentified Prototypes 1 | . . . 1 Parts Lost 4 | . . . 4 Power . | . . . . Propulsion 3 | . . . 3 Utility . | . . . . Weapon 1 | . . . 1 Highest Loss Streak 2 | . . . 2 Average Slot Usage (%) 88 | . 85 87 90 Engine 11 | . 14 14 9 Wheel 16 | . 28 28 1 Hover 11 | . . . 26 Device 8 | . . 2 17 Storage 12 | . 14 14 11 Energy Gun 19 | . 28 28 8 Ballistic Gun 6 | . . . 13 Naked Turns . | . . . . Heaviest Build 18 | 10 12 13 18 Greatest Support 26 | 26 26 26 26 Greatest Overweight (x) 2 | . . . 2 Average Overweight (x) . | . . . . Largest Inventory Capacity 6 | 6 6 6 6 Average Capacity 5 | 5 6 6 6 Most Carried 6 | 2 4 4 6 Average Carried 4 | 1 2 4 5 Final Capacity 6 | 6 6 6 6 Final Carried 6 | 2 4 4 6 Class Distribution -------------------- 100% | Mutant Dominant Class ---------------- Mutant | -10/Materials Mutant | -10/Mines Mutant | -9/Materials Resources | -11 -10 -10 -9 ----------- Run | Scr Mat Min Mat Matter Collected 437 | 255 15 10 157 Remotely . | . . . . Salvage Created 375 | . 115 . 260 Parts 23 | . 12 . 11 Haulers Intercepted . | . . . . Recyclers Shooed . | . . . . Parts Field Recycled . | . . . . Retrieved Matter . | . . . . Parts Self-Destructed . | . . . . Prevented . | . . . . Kills | -11 -10 -10 -9 ------- Run | Scr Mat Min Mat Combat Hostiles Destroyed 10 | . 4 . 6 Guns 10 | . 4 . 6 Classes Destroyed 4 | . 3 . 1 Builder 1 | . 1 . . Swarmer 3 | . 3 . . Grunt 6 | . 1 . 5 Sentry 1 | . . . 1 Best Kill Streak 3 | . 3 . 2 Combat Bots Only 3 | . 3 . 2 Max Kills in Single Turn 1 | . 1 . 1 Gunslinging . | . . . . Exploded . | . . . . Melee . | . . . . Uniques/NPCs Destroyed . | . . . . Combat | -11 -10 -10 -9 -------- Run | Scr Mat Min Mat Damage Taken 599 | . 83 . 516 Core 162 | . 19 . 143 Absorbed by Shields . | . . . . Core Remaining (%) 96 | 100 . 92 . Volleys Fired 33 | . 11 . 22 Largest 2 | . 2 . 2 Hottest 80 | . 80 . 63 Shots Fired 66 | . 22 . 44 Gun 66 | . 22 . 44 Cannon . | . . . . Launcher . | . . . . Special . | . . . . Kinetic 37 | . . . 37 Thermal 11 | . 11 . . Explosive . | . . . . Electromagnetic 18 | . 11 . 7 Robot Hit Streak 11 | . 4 . 11 Robot Miss Streak 3 | . 3 . 2 Penetration Max . | . . . . Secondary Targets 2 | . . . 2 Max Gunslinging Chain 1 | . . . 1 Shots Hit Robots 47 | . 11 . 36 Core Hits 16 | . 5 . 11 Critical Hits . | . . . . Critical Kills . | . . . . Critical Parts Destroyed . | . . . . Melee Attacks . | . . . . Impact . | . . . . Slashing . | . . . . Piercing . | . . . . Sneak Attacks . | . . . . Combat Hostiles . | . . . . Follow-up Attacks . | . . . . Damage Inflicted 590 | . 127 . 463 Guns 590 | . 127 . 463 Cannons . | . . . . Explosions . | . . . . Melee . | . . . . Ramming . | . . . . Kinetic 404 | . . . 404 Thermal 43 | . 43 . . Explosive . | . . . . Electromagnetic 143 | . 84 . 59 Impact . | . . . . Slashing . | . . . . Piercing . | . . . . Highest Corruption . | . . . . Average Corruption . | . . . . Corruption Purged . | . . . . Overload Shots . | . . . . Overflow Damage . | . . . . Projectiles . | . . . . Explosions . | . . . . Melee . | . . . . Knockbacks . | . . . . Impact . | . . . . Kinetic . | . . . . Secondary . | . . . . Self-Inflicted Damage . | . . . . Shots . | . . . . Rammed . | . . . . Targets Rammed . | . . . . Kicked . | . . . . Crushed . | . . . . Highest Temperature 164 | . 164 . 15 Average Temperature 56 | . 72 . 5 Received Heat Transfer 249 | . 6 . 243 Siege Activations . | . . . . Robots Corrupted . | . . . . Combat Hostiles . | . . . . Parts Fried . | . . . . Impact Corruptions . | . . . . Robots Melted . | . . . . Combat Hostiles . | . . . . Parts Melted . | . . . . Heat Transferred 100 | . 100 . . Parts Sabotaged . | . . . . Parts Stolen . | . . . . Parts Stripped . | . . . . Power Chain Reactions . | . . . . Missiles Intercepted . | . . . . Alert | -11 -10 -10 -9 ------- Run | Scr Mat Min Mat Peak Influence 230 | . 140 54 230 Average Influence 83 | . 82 54 114 Maximum Alert Level 1 | . . . 1 Low Security (%) 93 | 100 100 100 84 Level 1 6 | . . . 15 Level 2 . | . . . . Level 3 . | . . . . Level 4 . | . . . . Level 5 . | . . . . High Security . | . . . . Max Security . | . . . . Squads Dispatched 4 | . 2 . 2 Investigation . | . . . . Extermination . | . . . . Reinforcement 4 | . 2 . 2 Assault . | . . . . Garrison . | . . . . Intercept . | . . . . Construction Impeded . | . . . . Haulers Reinforced . | . . . . Stealth | -11 -10 -10 -9 --------- Run | Scr Mat Min Mat Distress Signals 3 | . 1 . 2 Communications Jammed . | . . . . Distress Signals . | . . . . Times Spotted 28 | . 13 . 15 Peak Tracking Total 6 | . 6 . 6 Tactical Retreats 3 | . 3 . . Traps | -11 -10 -10 -9 ------- Run | Scr Mat Min Mat Traps Triggered . | . . . . Indirectly . | . . . . Trap Hack Attempts . | . . . . Triggered . | . . . . Disarmed . | . . . . Reprogrammed . | . . . . Reused . | . . . . Traps Extracted . | . . . . Installed . | . . . . Triggered . | . . . . Machines | -11 -10 -10 -9 ---------- Run | Scr Mat Min Mat Machines Disabled . | . . . . Max in Single Turn . | . . . . Machines Sabotaged . | . . . . Garrisons Compromised . | . . . . Overloaded Fab Kills . | . . . . Fab Network Shutdowns . | . . . . Hacking | -11 -10 -10 -9 --------- Run | Scr Mat Min Mat Machines Accessed 1 | . 1 . . Terminals 1 | . 1 . . Fabricators . | . . . . Repair Stations . | . . . . Recycling Units . | . . . . Scanalyzers . | . . . . Garrison Access . | . . . . Total Hacks 2 | . 2 . . Successful 1 | . 1 . . Failed 1 | . 1 . . Catastrophic . | . . . . Database Lockouts . | . . . . Manual 1 | . 1 . . Terminals 2 | . 2 . . Fabricators . | . . . . Repair Stations . | . . . . Recycling Units . | . . . . Scanalyzers . | . . . . Garrison Access . | . . . . Terminal Hacks 1 | . 1 . . Record 1 | . 1 . . Fabricator Hacks . | . . . . Repair Station Hacks . | . . . . Recycling Unit Hacks . | . . . . Scanalyzer . | . . . . Garrison Access Hacks . | . . . . Unauthorized Hacks . | . . . . Terminals . | . . . . Fabricators . | . . . . Repair Stations . | . . . . Recycling Units . | . . . . Scanalyzers . | . . . . Garrison Access . | . . . . Data Cores Recovered . | . . . . Used . | . . . . Hacking Detections . | . . . . Full Trace Events . | . . . . Feedback Events . | . . . . Feedback Blocked . | . . . . Robot Schematics Acquired . | . . . . Robots Built . | . . . . Matter . | . . . . Time . | . . . . Total Robot Build Rating . | . . . . Part Schematics Acquired . | . . . . Parts Built . | . . . . Matter . | . . . . Time . | . . . . Total Part Build Rating . | . . . . Parts Repaired . | . . . . Time . | . . . . Parts Recycled . | . . . . Recycled Matter . | . . . . Retrieved Matter . | . . . . Retrieved Components . | . . . . Parts Scanalyzed . | . . . . Part Schematics Acquired . | . . . . Parts Damaged . | . . . . Bothacking | -11 -10 -10 -9 ------------ Run | Scr Mat Min Mat Used RIF Installer . | . . . . Robots Hacked . | . . . . Non-combat . | . . . . Combat . | . . . . Robot Hacks Applied . | . . . . Relay Couplers Released . | . . . . Robots Rewired . | . . . . Allies Hacked . | . . . . Hacks Repelled . | . . . . Allies | -11 -10 -10 -9 -------- Run | Scr Mat Min Mat Total Allies . | . . . . Largest Group . | . . . . Highest-Rated Group . | . . . . Highest-Rated Ally . | . . . . Total Orders . | . . . . Ally Attacks . | . . . . Total Damage . | . . . . Kills . | . . . . Allies Corrupted . | . . . . Allies Melted . | . . . . Intel | -11 -10 -10 -9 ------- Run | Scr Mat Min Mat Robot Analysis Total . | . . . . Derelict Logs Recovered 1 | . . 1 . Drone Launches . | . . . . Drone Recoveries . | . . . . Exploration | -11 -10 -10 -9 ------------- Run | Scr Mat Min Mat Turns Passed 615 | 51 190 122 252 Spaces Moved 521 | 45 153 134 189 Core 2 | 2 . . . Treads . | . . . . Legs . | . . . . Wheels 349 | 43 153 134 19 Hover 170 | . . . 170 Flight . | . . . . Fastest Speed 50 | 50 90 90 52 Average Speed 82 | 88 90 90 69 Slowest Speed 180 | 100 90 90 180 Overloaded Moves . | . . . . Propulsion Burnouts . | . . . . Robots Hopped . | . . . . Cave-ins Triggered . | . . . . Exploration Rate (%) 24 | 4 41 32 21 Regions Visited 3 Branch Regions 1 Pre-discovered Areas . | . . . . Known Exits Taken . | . . . . Unknown Exits Taken 3 | 1 1 1 . Scrap Searched 1 | . . 1 . Spaces Dug . | . . . . Terrain Destroyed . | . . . . Melee . | . . . . Projectile . | . . . . AOE . | . . . . Actions | -11 -10 -10 -9 --------- Run | Scr Mat Min Mat Total 634 | 52 182 134 266 Wait 51 | . 17 . 34 Move 518 | 44 152 133 189 Hop . | . . . . Pick Up 7 | 2 1 . 4 Fast Attach 14 | 6 . 1 7 Attach 1 | . . . 1 Detach 2 | . . . 2 Swap 2 | . 1 . 1 Drop 6 | . . . 6 Fire 33 | . 11 . 22 Melee . | . . . . Ram . | . . . . Kick . | . . . . Crush . | . . . . Escape Stasis . | . . . . Rewire . | . . . . Trap . | . . . . Miscellaneous . | . . . . Route ------- -11/Scrapyard -10/Materials -10/Mines -9/Materials History --------- Turn | Location | Event 26 | -11/Scrapyard | Discovered new exit (range 16) 52 | -11/Scrapyard | Entered Materials 229 | -10/Materials | Discovered new exit (range 8) 242 | -10/Materials | Entered Mines 259 | -10/Mines | Learned Materials emergency access door positions 311 | -10/Mines | Build established: Mutant 317 | -10/Mines | Discovered new exit (range 5) 364 | -10/Mines | Entered Materials 364 | -9/Materials | Evolved 2 slots: Propulsion x1, Utility x1 616 | -9/Materials | Self-destructed Last Messages --------------- 00531_ G-47 Trooper destroyed. 00533_ K-01 Serf collects debris. 00545_ Imp. Hover Unit destroyed. 00545_ K-01 Serf collects debris. 00558_ G-34 Mercenary destroyed. 00558_ Switching to secondary target: G-34 Mercenary. 00559_ Acquired 34 matter. 00559_ K-01 Serf collects debris. 00563_ Acquired 44 matter. 00572_ Acquired Nuclear Core. 00576_ G-34 Mercenary destroyed. 00585_ W-16 Scout sends out distress signal. 00600_ Imp. Hover Unit destroyed. 00603_ O-16 Technician: "IFF HANDSHAKE FAILED. SECURING TERMINAL." 00603_ O-16 Technician uses terminal to summon reinforcements. 00603_ ALERT: Hostiles spotted, dispatching reinforcements to Terminal M012. 00603_ O-16 Technician locks terminal. 00610_ G-34 Mercenary destroyed. 00610_ Switching to secondary target: G-34 Mercenary. 00611_ Imp. Hover Unit destroyed. Map ----- +----------------------------------------------------+ | ?????????????????????????????????# "T" # # | | ?????????????????????????????????# # # | | ???????????????#????????????????## # + | | ???????????????# "??????????????# % # # | | ???????????????# ???????######## + # | | ???????????????+ ??????#!!!!**#! # # | | ?????????????????? ?????#!!!!* # ## ## | | ?????????????????###/##???# =# ## ## | | ????????????###### #### %###+####### ##### | | ??????????? #????# #???? | | ??????????? #????# #???? | | ??????????? %=#???? ???? | | ????????????###### ## ########+#####[ #?? | | ?????????????????#####??# #??# [ =/% #?? | | ???????????????# """ ? + #??# *# #?? | | ???????????????# "Y" ! # #??# #? ???? | | ???????????????# " " ?# #??# ###+##??? | | ???????????????# # ##??# #???????? | | ???????????????# # #???# #???????? | | ??????????????????""""" + #???# #???????? | | ??????????????????""""" ## #???# #???????? | | ??????????????????""""" ?# #???####+######???????? | | ?????????????????? ??# #??????# ?????????????? | | ?????????????????######??#b#??????# ?????????????? | | ?????????????????#########b#??????# ?????????????? | | ?????????? u @ #??????# ?????????????? | | ?????????? k u =%* #??????# ?????????????? | | ?????????? " g a#?????? ??????????????? | | ????????????? "" u ?????????????????????? | | ????????????? ? "" ????????????????????? | | ???????????????""" ???????????????????? | | ????????????????" ???????????????????? | | ???????????????""" #o # ??????????????????? | | ???????????????""" # T # "?????????????????? | | ????????????????"" # #? ????????????????? | | ????????????????" ##### ##? ????????????????? | | ???????????????? ????? #??? ????????????????? | | ???????????????? ?????? #???###???????????????? | | ??????????????????##?????? ??????????????????????? | | ?????????????????????????????????????????????????? | | ?????????????????????????????????????????????????? | | ???+?????????????????????????????????????????????? | | ?????????????????????????????????????????????????? | | ?????????????????????????????????????????????????? | | ?????????????????????????????????????????????????? | | ?????????????????????????????????????????????????? | | ?????????????????????????????????????????????????? | | ???+?????????????????????????????????????????????? | | ?????????????????????????????????????????????????? | | ?????????????????????????????????????????????????? | +----------------------------------------------------+ Best States ------------- Heat Dissipation 38 Energy Generation 14 Energy Capacity 265 Matter Stores 300 Matter Capacity 300 Sight Range 16 Terrain Scan Density 10 ECM Strength 1 Evasion (%) 54 Item Schematics ----------------- None Robot Schematics ------------------ None Fabricated ------------ Nothing Alien Tech Used ----------------- None Achievements -------------- None Challenges ------------ None Game ------ Seed UltimateMolecularMultirail Manual? 0 Play Time 00:11:01 Cumulative 160.4 hours Start 2019.12.01 @ 21:57:26 End 2019.12.01 @ 22:10:31 Sessions 1 Manual Loads 0 Difficulty Rogue Special Mode None Game No. 197 Rogue 197 Adventurer 0 Explorer 0 Win Type - Total 1 Types 1/0/0/0/0/0/0 Lore% 38 Gallery% 63 Achievement% 41 Wizard Run 0 Options --------- ASCII 0 Keyboard 1 Movement Arrows Keybinds 0 Fullscreen 1 Font 12/Terminus Map View 83x54 Tactical HUD 1 Map Filters NONE Filters NONE Steam 1 RUN: e627a463-17ca-43de-91b8-05439238ab4f